fUSD/lending_fUSD_20260311
["ID","MTS","AMOUNT","RATE_DAILY","PERIOD"]
[408191945,1773201045239,-150.0,0.00021699,2]
[408191946,1773201045248,-500.0,0.00021699,2]
[408191947,1773201045258,-600.74757442,0.00021699,2]
[408191948,1773201045269,-500.0,0.00021699,2]
[408191949,1773201045278,-500.0,0.00021699,2]
[408191950,1773201045287,-150.0,0.00021699,2]
[408191951,1773201045297,-150.0,0.00021699,2]
[408191952,1773201045306,-150.20209622,0.00021699,2]
[408191953,1773201045315,-500.0,0.00021699,2]
[408191954,1773201045324,-150.0,0.00021699,2]
[408191955,1773201045333,-500.0,0.00021699,2]
[408191956,1773201045343,-500.0,0.00021699,2]
[408191957,1773201045354,-500.0,0.00021699,2]
[408191958,1773201045364,-150.0,0.00021699,2]
[408191959,1773201045374,-1000.0,0.0002174,2]
[408191960,1773201045383,-150.0,0.00021754,2]
[408191961,1773201045391,-150.0,0.00021754,2]
[408191962,1773201045400,-150.0,0.00021754,2]
[408191963,1773201045409,-500.0,0.00021754,2]
[408191964,1773201045419,-500.0,0.00021754,2]
[408191965,1773201045430,-150.0,0.00021754,2]
[408191966,1773201045441,-500.0,0.00021754,2]
[408191967,1773201045452,-500.0,0.00021754,2]
[408191968,1773201045463,-500.0,0.00021754,2]
[408191969,1773201045472,-500.0,0.00021754,2]
[408191970,1773201045483,-481.15463287,0.00021754,2]
[408191971,1773201045492,-150.0,0.00021754,2]
[408191972,1773201045501,-500.0,0.00021754,2]
[408191973,1773201045511,-207.78302129,0.00021754,2]
[408191974,1773201045520,-504.90199074,0.00021754,2]
[408191975,1773201045529,-500.0,0.00021754,2]
[408191976,1773201045538,-500.0,0.00021754,2]
[408191977,1773201045547,-150.0,0.00021754,2]
[408191978,1773201045558,-150.0,0.00021754,2]
[408191979,1773201045566,-153.26158094,0.00021754,2]
[408191980,1773201045575,-209.8782102,0.00021754,2]
[408191981,1773201045584,-453.86401705,0.00021754,2]
[408191982,1773201045592,-500.0,0.00021754,2]
[408191983,1773201045603,-500.0,0.00021754,2]
[408191984,1773201045612,-202.61389181,0.00021754,2]
[408191985,1773201045621,-275.17021168,0.00021808,2]
[408191986,1773201045630,-250.58262965,0.00021808,2]
[408191987,1773201045641,-205.57005763,0.00021808,2]
[408191988,1773201045651,-500.0,0.00021808,2]
[408191989,1773201045661,-500.0,0.00021808,2]
[408191990,1773201045670,-150.0,0.00021808,2]
[408191991,1773201045680,-500.0,0.00021808,2]
[408191992,1773201045691,-500.0,0.00021808,2]
[408191993,1773201045700,-500.0,0.00021808,2]
[408191994,1773201045710,-500.0,0.00021808,2]
[408191995,1773201045719,-150.0,0.00021808,2]
[408191996,1773201045728,-500.0,0.00021808,2]
[408191997,1773201045737,-500.0,0.00021808,2]
[408191998,1773201045746,-500.0,0.00021808,2]
[408191999,1773201045755,-247.84097861,0.00021808,2]
[408192000,1773201045764,-152.23722252,0.00021808,2]
[408192001,1773201045774,-500.0,0.00021808,2]
[408192002,1773201045782,-500.0,0.00021808,2]
[408192003,1773201045792,-332.76,0.00021836,2]
[408192004,1773201045800,-500.0,0.00021863,2]
[408192005,1773201045810,-500.0,0.00021863,2]
[408192006,1773201045819,-183.49211443,0.00021863,2]
[408192007,1773201045829,-500.0,0.00021863,2]
[408192008,1773201045839,-500.0,0.00021863,2]
[408192009,1773201045848,-500.0,0.00021863,2]
[408192010,1773201045857,-500.0,0.00021863,2]
[408192011,1773201045866,-150.0,0.00021863,2]
[408192012,1773201045876,-500.0,0.00021863,2]
[408192013,1773201045885,-150.0,0.00021863,2]
[408192014,1773201045894,-500.0,0.00021863,2]
[408192015,1773201045903,-500.0,0.00021863,2]
[408192016,1773201045912,-342.97136106,0.00021863,2]
[408192017,1773201045922,-5000.0,0.00021918,2]
[408192018,1773201045931,-510.77564098,0.00021918,2]
[408192019,1773201045941,-500.0,0.00021918,2]
[408192020,1773201045951,-500.0,0.00021918,2]
[408192021,1773201045960,-500.0,0.00021918,2]
[408192022,1773201045969,-500.0,0.00021918,2]
[408192023,1773201045978,-500.0,0.00021918,2]
[408192024,1773201045988,-200.54971952,0.00021918,2]
[408192025,1773201045997,-500.0,0.00021918,2]
[408192026,1773201046009,-500.0,0.00021918,2]
[408192027,1773201046018,-280.13396594,0.00021918,2]
[408192028,1773201046027,-161.87934117,0.00021918,2]
[408192029,1773201046036,-1623.0,0.0002196,2]
[408192030,1773201046047,-500.0,0.00021973,2]
[408192031,1773201046056,-500.0,0.00021973,2]
[408192032,1773201046065,-500.0,0.00021973,2]
[408192033,1773201046075,-500.0,0.00021973,2]
[408192034,1773201046084,-500.0,0.00021973,2]
[408192035,1773201046093,-450.62449707,0.00021973,2]
[408192037,1773201046102,-500.0,0.00021973,2]
[408192039,1773201046111,-1000.0,0.00022014,2]
[408192041,1773201046120,-500.0,0.00022028,2]
[408192042,1773201046138,-401.99957865,0.00022028,2]
[408192043,1773201046148,-500.0,0.00022028,2]
[408192044,1773201046158,-500.0,0.00022028,2]
[408192045,1773201046167,-500.0,0.00022028,2]
[408192046,1773201046176,-500.0,0.00022028,2]
[408192047,1773201046185,-500.0,0.00022082,2]
[408192048,1773201046194,-500.0,0.00022082,2]
[408192049,1773201046203,-500.0,0.00022082,2]
[408192050,1773201046212,-500.0,0.00022082,2]
[408192051,1773201046224,-516.59135626,0.00022082,2]
[408192052,1773201046235,-37502.97337781,0.000221,2]
[408192054,1773201046561,-2492.39690249,0.000221,2]
[408192055,1773201046577,-96577.6297197,0.000221,2]
[408192056,1773201046587,-213.00520374,0.00022137,2]
[408192057,1773201046596,-500.0,0.00022137,2]
[408192058,1773201046605,-500.0,0.00022137,2]
[408192059,1773201046614,-292.63243002,0.00022137,2]
[408192060,1773201046627,-7137.6674074,0.00022153,2]
[408192061,1773201046636,-500.0,0.00022192,2]
[408192062,1773201046645,-155.04313062,0.00022192,2]
[408192063,1773201046654,-500.0,0.00022247,2]
[408192064,1773201046664,-1000.0,0.00022288,2]
[408192066,1773201046673,-500.0,0.00022302,2]
[408192068,1773201046682,-500.0,0.00022356,2]
[408192070,1773201046691,-500.0,0.00022411,2]
[408192071,1773201046697,-500.0,0.00022466,2]
[408192073,1773201046704,-6687.55814545,0.00022505,2]
[408192074,1773201046710,-500.0,0.00022521,2]
[408192075,1773201046717,-1999.0,0.00022562,2]
[408192076,1773201046724,-500.0,0.00022576,2]
[408192077,1773201046730,-500.0,0.0002263,2]
[408192078,1773201046738,-1600.0,0.00022667,2]
[408192079,1773201046747,-398.88764252,0.00022685,2]
[408192080,1773201046756,-5533.0,0.000227,3]
[408192081,1773201046765,-2000.0,0.000229,2]
[408192082,1773201046775,-1178.26205418,0.00022948,2]
[408192083,1773201046783,-160.0,0.00023,2]
[408192084,1773201046792,-2000.0,0.00023042,2]
[408192085,1773201046802,-847.7,0.00023207,2]
[408192086,1773201046810,-485.24,0.00023289,2]
[408192087,1773201046820,-5533.0,0.000234,5]
[408192088,1773201046830,-5800.0,0.00023401,2]
[408192089,1773201046843,-405.76,0.00023563,2]
[408192090,1773201046852,-502.0,0.00023632,8]
[408192091,1773201046862,-254.36,0.0002369,2]
[408192092,1773201046871,-496.2,0.0002377,2]
[408192093,1773201046881,-453.11,0.0002377,2]
[408192094,1773201046891,-723.4,0.0002389,2]
[408192095,1773201046901,-1805.834801,0.0002419,2]
[408192096,1773201046910,-7137.6674074,0.00024306,2]
[408192097,1773201046919,-496.2,0.00024365,2]
[408192098,1773201046928,-1000.0,0.00024658,2]
[408192099,1773201046937,-150.0,0.00024658,2]
[408192100,1773201046947,-1600.0,0.00024727,120]
[408192101,1773201046956,-82302.9472971,0.000249,3]
[408192102,1773201046964,-496.22567832,0.00024959,2]
[408192103,1773201046974,-402.9362083,0.00025125,2]
[408192104,1773201046983,-2000.0,0.00025136,2]
[408192105,1773201046993,-6687.55814545,0.00025608,2]
[408192106,1773201047002,-150.0,0.0002589,2]
[408192107,1773201047019,-7482.08611792,0.00025975,3]
[408192108,1773201047033,-1178.26205418,0.00025995,2]
[408192109,1773201047043,-5800.0,0.00026,2]
[408192110,1773201047056,-2151.90409404,0.00026,2]
[408192111,1773201047067,-180.03,0.000264,14]
[408192112,1773201047078,-7482.08611792,0.00026449,3]
[408192113,1773201047087,-7137.6674074,0.00026459,2]
[408192114,1773201047095,-688.0,0.00026562,10]
[408192115,1773201047104,-2000.0,0.000266,2]
[408192116,1773201047113,-195.54588616,0.00026886,14]
[408192117,1773201047123,-331.5,0.00026895,2]
[408192118,1773201047131,-502.0,0.00026947,11]
[408192119,1773201047142,-172.95802059,0.000271,3]
[408192120,1773201047152,-169.38,0.00027174,2]
[408192121,1773201047162,-150.0,0.00027185,2]
[408192122,1773201047171,-7482.08611792,0.00027377,3]
[408192123,1773201047180,-14964.1722358,0.00027387,3]
[408192124,1773201047190,-300.0,0.00027397,3]
[408192125,1773201047199,-300.0,0.00027397,3]
[408192126,1773201047210,-300.0,0.00027397,3]
[408192127,1773201047219,-300.0,0.00027397,3]
[408192128,1773201047230,-300.0,0.00027397,3]
[408192129,1773201047241,-300.0,0.00027397,2]
[408192130,1773201047250,-1000.0,0.00027397,20]
[408192131,1773201047260,-6236.0,0.00027397,10]
[408192132,1773201047269,-254.36,0.0002781,2]
[408192133,1773201047279,-304.98583032,0.00027873,2]
[408192134,1773201047289,-7482.08611792,0.00027885,3]
[408192135,1773201047298,-3520.771,0.00027895,2]
[408192136,1773201047307,-621.67,0.00027895,2]
[408192137,1773201047316,-1217.178,0.00027895,2]
[408192138,1773201047326,-415.734,0.00027895,2]
[408192139,1773201047335,-5996.0,0.00027895,2]
[408192140,1773201047344,-3751.0,0.00027895,2]
[408192141,1773201047353,-234.65,0.00027922,14]
[408192142,1773201047362,-150.0,0.00028544,2]
[408192143,1773201047370,-6687.55814545,0.00028711,2]
[408192144,1773201047378,-7482.08611792,0.00028955,3]
[408192145,1773201047387,-1178.26205418,0.00029043,2]
[408192146,1773201047396,-166.2,0.00029173,14]
[408192147,1773201047406,-7889.45946535,0.000295,120]
[408192148,1773201047416,-7482.08611792,0.00029857,3]
[408192149,1773201047426,-2391.0,0.00029867,5]
[408192150,1773201047435,-2424.0,0.00029867,5]
[408192151,1773201047444,-150.0,0.00029971,2]
[408192152,1773201047456,-502.0,0.00030263,14]
[408192153,1773201047467,-2000.0,0.000303,2]
[408192154,1773201047478,-150.0,0.0003065,2]
[408192155,1773201047488,-200.0,0.0003065,2]
[408192156,1773201047497,-7482.08611792,0.00030885,3]
[408192157,1773201047507,-270.0,0.00030895,2]
[408192158,1773201047516,-150.293,0.00030895,2]
[408192159,1773201047526,-150.158,0.00030895,2]
[408192160,1773201047536,-150.272,0.00030895,2]
[408192161,1773201047546,-150.0,0.00030895,2]
[408192162,1773201047555,-150.508,0.00030895,2]
[408192163,1773201047564,-3506.0,0.00030895,2]
[408192164,1773201047573,-5996.0,0.00030895,2]
[408192165,1773201047583,-500.0,0.00031076,2]
[408192166,1773201047591,-1500.0,0.00031076,2]
[408192167,1773201047601,-543.28074576,0.00031076,2]
[408192168,1773201047610,-151.0,0.00031076,2]
[408192169,1773201047619,-204.39048447,0.00031076,2]
[408192170,1773201047630,-500.0,0.00031131,2]
[408192171,1773201047640,-151.0,0.00031131,2]
[408192172,1773201047649,-500.0,0.00031186,2]
[408192173,1773201047658,-151.0,0.00031186,2]
[408192174,1773201047668,-500.0,0.00031241,2]
[408192175,1773201047677,-151.0,0.00031241,2]
[408192176,1773201047687,-500.0,0.00031296,2]
[408192177,1773201047696,-151.0,0.00031296,2]
[408192178,1773201047705,-29670.0,0.00031348,2]
[408192179,1773201047714,-500.0,0.00031351,2]
[408192180,1773201047723,-151.0,0.00031351,2]
[408192181,1773201047732,-500.0,0.00031406,2]
[408192182,1773201047744,-151.0,0.00031406,2]
[408192183,1773201047754,-500.0,0.00031461,2]
[408192184,1773201047763,-151.0,0.00031461,2]
[408192185,1773201047772,-150.0,0.0003147,2]
[408192186,1773201047782,-500.0,0.00031516,2]
[408192187,1773201047791,-151.0,0.00031516,2]
[408192188,1773201047801,-500.0,0.00031571,2]
[408192189,1773201047810,-151.0,0.00031571,2]
[408192190,1773201047820,-7482.08611792,0.00031616,3]
[408192191,1773201047830,-500.0,0.00031626,2]
[408192192,1773201047840,-151.0,0.00031626,2]
[408192193,1773201047850,-847.0,0.00031676,3]
[408192194,1773201047860,-500.0,0.00031681,2]
[408192195,1773201047870,-300.78414187,0.00031681,2]
[408192196,1773201047880,-169.38,0.00031703,2]
[408192197,1773201047890,-500.0,0.00031736,2]
[408192198,1773201047899,-500.0,0.00031791,2]
[408192199,1773201047909,-6687.55814545,0.00031814,2]
[408192200,1773201047918,-1178.26205418,0.0003209,2]
[408192201,1773201047927,-300.0,0.00032877,60]
[408192202,1773201047937,-300.0,0.00032877,60]
[408192203,1773201047946,-300.0,0.00032877,3]
[408192204,1773201047955,-300.0,0.00032877,3]
[408192205,1773201047965,-300.0,0.00032877,3]
[408192206,1773201047974,-300.0,0.00032877,3]
[408192207,1773201047984,-150.0,0.00033043,2]
[408192208,1773201047995,-270.07,0.000332,30]
[408192209,1773201048005,-14964.1722358,0.00033342,3]
[408192210,1773201048017,-502.0,0.00033579,17]
[408192211,1773201048026,-7482.08611792,0.00033874,3]
[408192212,1773201048035,-4927.296,0.00033895,2]
[408192213,1773201048044,-1028.0,0.00034,2]
[408192214,1773201048055,-150.0,0.00034696,2]
[408192215,1773201048064,-1500.0,0.00034795,2]
[408192216,1773201048073,-6687.55814545,0.00034916,2]
[408192217,1773201048085,-1178.26205418,0.00035138,2]
[408192218,1773201048094,-401.0,0.000354,120]
[408192219,1773201048103,-7482.08611792,0.00035409,3]
[408192220,1773201048113,-723.4,0.00035671,2]
[408192221,1773201048122,-400.0,0.000357,120]
[408192222,1773201048131,-7482.08611792,0.00036228,3]
[408192223,1773201048140,-169.38,0.00036232,2]
[408192224,1773201048149,-2630.0,0.00036248,5]
[408192225,1773201048157,-150.0,0.0003643,2]
[408192226,1773201048166,-150.0,0.00036893,30]
[408192227,1773201048175,-502.0,0.00036895,20]
[408192228,1773201048185,-162.0,0.00037,120]
[408192229,1773201048195,-254.36,0.0003708,2]
[408192230,1773201048204,-7482.08611792,0.00037692,4]
[408192231,1773201048213,-1028.65139268,0.000377,2]
[408192232,1773201048223,-201.9,0.00038001,7]
[408192233,1773201048232,-6687.55814545,0.00038019,2]
[408192234,1773201048241,-282.56,0.00038034,30]
[408192235,1773201048251,-7482.08611792,0.00038165,4]
[408192236,1773201048261,-1178.26205418,0.00038185,2]
[408192237,1773201048272,-150.0,0.00038252,2]
[408192238,1773201048281,-151.52824601,0.00038582,55]
[408192239,1773201048290,-4018.689,0.00038922,53]
[408192240,1773201048299,-178.169,0.00038922,53]
[408192241,1773201048309,-22446.2583538,0.00039795,4]
[408192242,1773201048318,-37410.4305896,0.00039805,4]
[408192243,1773201048327,-507.41,0.00039815,120]
[408192244,1773201048337,-500.0,0.00039815,2]
[408192245,1773201048346,-439.94423244,0.00039815,2]
[408192246,1773201048355,-1767.47,0.00039815,2]
[408192247,1773201048364,-1767.47,0.00039815,2]
[408192248,1773201048374,-1767.47,0.00039815,2]
[408192249,1773201048383,-1767.47,0.00039815,2]
[408192250,1773201048392,-1767.47,0.00039815,2]
[408192251,1773201048401,-1767.47,0.00039815,2]
[408192252,1773201048410,-1767.47,0.00039815,2]
[408192253,1773201048419,-1767.47,0.00039815,2]
[408192254,1773201048428,-1767.47,0.00039815,2]
[408192255,1773201048438,-1767.47,0.00039815,2]
[408192256,1773201048447,-1767.47,0.00039815,2]
[408192257,1773201048456,-1767.47,0.00039815,2]
[408192258,1773201048465,-1767.47,0.00039815,2]
[408192259,1773201048473,-1767.47,0.00039815,2]
[408192260,1773201048481,-1767.47,0.00039815,2]
[408192261,1773201048489,-1767.47,0.00039815,2]
[408192262,1773201048498,-1767.47,0.00039815,2]
[408192263,1773201048506,-1767.47,0.00039815,2]
[408192264,1773201048514,-1767.47,0.00039815,2]
[408192265,1773201048523,-1767.47,0.00039815,2]
[408192266,1773201048534,-1767.47,0.00039815,2]
[408192267,1773201048543,-1767.47,0.00039815,2]
[408192268,1773201048552,-1767.47,0.00039815,2]
[408192269,1773201048561,-1767.6607929,0.00039815,2]
[408192270,1773201048571,-500.0,0.00039815,2]
[408192271,1773201048580,-500.62592271,0.00039815,2]
[408192272,1773201048589,-1198.58,0.00039815,2]
[408192273,1773201048599,-1198.58,0.00039815,2]
[408192274,1773201048607,-1198.58,0.00039815,2]
[408192275,1773201048616,-1198.58,0.00039815,2]
[408192276,1773201048626,-1198.58,0.00039815,2]
[408192277,1773201048635,-1198.58,0.00039815,2]
[408192278,1773201048644,-1198.58,0.00039815,2]
[408192279,1773201048653,-1198.58,0.00039815,2]
[408192280,1773201048662,-801.32458713,0.00039815,2]
[408192281,1773201062694,5000.0,0.00019701,120]
[408192282,1773201140796,500.0,8.6e-05,2]
[408192283,1773201146680,500.0,8.6e-05,2]
[408192284,1773201147180,500.0,8.6e-05,2]
[408192285,1773201148221,500.0,8.6e-05,2]
[408192286,1773201148513,500.0,8.6e-05,2]
[408192287,1773201148989,500.0,8.6e-05,2]
[408192288,1773201150067,500.0,8.6e-05,2]
[408192289,1773201150530,500.0,8.6e-05,2]
[408192290,1773201338736,-300.0,0.00014999,2]
[408192291,1773201338762,-150.0,0.00014999,2]
[408192292,1773201338789,-1200.0,0.00014999,2]
[408192293,1773201338818,-500.0,0.00015,30]
[408192294,1773201338845,-500.0,0.00015,30]
[408192295,1773201338875,-500.0,0.00015,30]
[408192296,1773201338902,-500.0,0.00015,30]
[408192297,1773201338926,-500.0,0.00015,30]
[408192298,1773201338951,-500.0,0.00015,30]
[408192299,1773201338976,-350.0,0.00015,30]
[408192300,1773201341433,-150.0,0.00015,30]
[408192301,1773201341455,-500.0,0.00015,30]
[408192302,1773201341477,-500.0,0.00015,30]
[408192303,1773201341499,-500.0,0.00015,30]
[408192304,1773201341521,-500.0,0.00015,30]
[408192305,1773201341542,-500.0,0.00015273,2]
[408192306,1773201341562,-501.45326548,0.00015273,2]
[408192307,1773201341582,-500.0,0.00015273,2]
[408192308,1773201341604,-500.0,0.00015273,2]
[408192309,1773201341629,-168.20956672,0.00015289,2]
[408192310,1773201341652,-396.84846087,0.00015289,2]
[408192311,1773201341677,-283.48870693,0.0001529,2]
[408192312,1773201342681,-5000.0,0.0001529,2]
[408192313,1773201344220,-5000.0,0.0001529,2]
[408192314,1773201346302,-5000.0,0.0001529,2]
[408192315,1773201347931,-5000.0,0.0001529,2]
[408192316,1773201349184,-5000.0,0.0001529,2]
[408192317,1773201350823,-5000.0,0.0001529,2]
[408192318,1773201352903,-5000.0,0.0001529,2]
[408192319,1773201354456,-5000.0,0.0001529,2]
[408192320,1773201376860,-527.45633235,0.00015273,2]
[408192321,1773201376883,-500.32127361,0.00015273,2]
[408192322,1773201376904,-300.0,0.00015289,2]
[408192323,1773201376927,-3672.22239404,0.0001529,2]
[408192324,1773201381124,-5000.0,0.0001529,2]
[408192325,1773201437727,-300.0,0.00015289,2]
[408192326,1773201437747,-4700.0,0.0001529,2]
[408192327,1773201439554,-300.0,0.0001529,2]
[408192328,1773201439576,-4700.0,0.0001529,2]
[408192329,1773201440730,-5000.0,0.0001529,2]
[408192330,1773201442064,-5000.0,0.0001529,2]
[408192331,1773201443740,-5000.0,0.0001529,2]
[408192332,1773201445429,-5000.0,0.0001529,2]
[408192333,1773201446763,-5000.0,0.0001529,2]
[408192334,1773201447499,500.0,8.6e-05,2]
[408192335,1773201447924,-500.0,0.00015,30]
[408192336,1773201447948,-4500.0,0.0001529,2]
[408192337,1773201449119,-5000.0,0.0001529,2]
[408192338,1773201450313,-5000.0,0.0001529,2]
[408192339,1773201451396,-5000.0,0.0001529,2]
[408192340,1773201453169,-5000.0,0.0001529,2]
[408192341,1773201454866,-5000.0,0.0001529,2]
[408192342,1773201495963,-5000.0,0.0001529,2]
[408192343,1773201496841,-5000.0,0.0001529,2]
[408192344,1773201497633,-5000.0,0.0001529,2]
[408192345,1773201498356,-5000.0,0.0001529,2]
[408192346,1773201499062,-5000.0,0.0001529,2]
[408192347,1773201499718,-5000.0,0.0001529,2]
[408192348,1773201500428,-5000.0,0.0001529,2]
[408192349,1773201501000,-5000.0,0.0001529,2]
[408192350,1773201501315,-5000.0,0.0001529,2]
[408192351,1773201501662,-5000.0,0.0001529,2]
[408192352,1773201502050,-5000.0,0.0001529,2]
[408192353,1773201522078,-5000.0,0.0001529,2]
[408192354,1773201523778,-5000.0,0.0001529,2]
[408192355,1773201524940,-5000.0,0.0001529,2]
[408192356,1773201526064,-5000.0,0.0001529,2]
[408192357,1773201526876,-5000.0,0.0001529,2]
[408192358,1773201527997,-5000.0,0.0001529,2]
[408192359,1773201529321,-5000.0,0.0001529,2]
[408192360,1773201530451,-5000.0,0.0001529,2]
[408192361,1773201531410,-5000.0,0.0001529,2]
[408192362,1773201532315,-5000.0,0.0001529,2]
[408192363,1773201533312,-5000.0,0.0001529,2]
[408192364,1773201534289,-5000.0,0.0001529,2]
[408192365,1773201535604,-5000.0,0.0001529,2]
[408192366,1773201536654,-5000.0,0.0001529,2]
[408192367,1773201537952,-5000.0,0.0001529,2]
[408192368,1773201562032,1696.4899353,0.00013,2]
[408192369,1773201616922,-1200.0,0.00015289,2]
[408192370,1773201616943,-264.0,0.00015289,2]
[408192371,1773201616967,-300.0,0.00015289,2]
[408192372,1773201616989,-277.0,0.0001529,2]
[408192373,1773201617013,-2959.0,0.0001529,2]
[408192374,1773201618021,-5000.0,0.0001529,2]
[408192375,1773201618991,-5000.0,0.0001529,2]
[408192376,1773201620174,-5000.0,0.0001529,2]
[408192378,1773201625780,-2000.0,0.0001529,2]
[408192379,1773201668053,2368.001722,7.945e-05,2]
[408192380,1773201754647,1435.5183427,9.5e-05,3]
[408192381,1773201754670,7468.49696271,9.5e-05,3]
[408192382,1773201858445,227.23149815,0.0001,2]
[408192383,1773201858902,500.15,0.0002,120]
[408192385,1773201939795,-175.84376146,0.00014859,2]
[408192386,1773202068898,164.95,0.00011821,2]
[408192388,1773202203903,14.48884641,0.00014671,2]
[408192389,1773202203928,455.78418235,0.00014671,2]
[408192390,1773202203954,327.55430245,0.00014671,2]
[408192391,1773202203978,489.0,0.00014671,2]
[408192392,1773202204004,213.17266879,0.00014671,2]
[408192393,1773202207958,166.66,0.00014204,2]
[408192394,1773202208158,166.66,0.00014503,2]
[408192395,1773202208403,166.66,0.00014802,2]
[408192403,1773202231546,-175.84376146,0.00014868,2]
[408192404,1773202231557,-194.5969468,0.00014901,2]
[408192405,1773202231566,-363.808754,0.00014934,7]
[408192406,1773202231575,-5000.0,0.00014938,2]
[408192407,1773202231586,-300.0,0.00014938,2]
[408192408,1773202231596,-250.0,0.00014943,2]
[408192410,1773202231605,-274.0,0.00014943,2]
[408192412,1773202231614,-5000.0,0.0001495,2]
[408192414,1773202231624,-5000.0,0.0001495,2]
[408192416,1773202231634,-300.0,0.0001495,2]
[408192418,1773202231643,-225.2267,0.0001495,2]
[408192420,1773202231651,-567.44,0.00014952,2]
[408192422,1773202231660,-500.0,0.00014952,2]
[408192423,1773202231669,-491.54511265,0.00014955,2]
[408192425,1773202231679,-300.0,0.00014968,2]
[408192434,1773202231908,-252.0,0.00014983,2]
[408192435,1773202231917,-1200.0,0.00014983,2]
[408192436,1773202231926,-300.0,0.00014983,2]
[408192437,1773202231935,-180.292,0.00014984,2]
[408192438,1773202231944,-3966.858,0.00014984,2]
[408192439,1773202231953,-188.67257488,0.00014984,2]
[408192440,1773202231963,-188.67257488,0.00014984,2]
[408192441,1773202231972,-166.66,0.00015101,2]
[408192442,1773202231981,-3365.44773791,0.0001521,2]
[408192443,1773202231990,-175.84376146,0.00015221,2]
[408192444,1773202231999,-300.0,0.00015272,2]
[408192445,1773202232008,-500.0,0.00015273,2]
[408192446,1773202232017,-500.39228547,0.00015273,2]
[408192447,1773202232026,-639.42076342,0.00015273,2]
[408192448,1773202232035,-502.91886886,0.00015273,2]
[408192449,1773202232044,-589.24209404,0.00015273,2]
[408192450,1773202232053,-500.53605254,0.00015273,2]
[408192451,1773202232062,-500.0,0.00015273,2]
[408192452,1773202232074,-500.0,0.00015273,2]
[408192453,1773202232083,-500.0,0.00015273,2]
[408192454,1773202232093,-500.0,0.00015273,2]
[408192455,1773202232102,-500.0,0.00015273,2]
[408192456,1773202232111,-407.71239442,0.00015273,2]
[408192457,1773202232120,-500.0,0.00015273,2]
[408192458,1773202232129,-428.14160978,0.00015273,2]
[408192459,1773202232138,-500.0,0.00015281,2]
[408192460,1773202232147,-200.0,0.00015281,2]
[408192461,1773202232156,-151.0,0.00015281,2]
[408192462,1773202232165,-151.0,0.00015281,2]
[408192463,1773202232174,-151.0,0.00015281,2]
[408192464,1773202232183,-151.0,0.00015281,2]
[408192465,1773202232192,-151.0,0.00015281,2]
[408192466,1773202232201,-151.0,0.00015281,2]
[408192467,1773202232211,-151.0,0.00015281,2]
[408192468,1773202232219,-175.16390861,0.00015281,2]
[408192469,1773202232228,-151.0,0.00015281,2]
[408192470,1773202232237,-151.0,0.00015281,2]
[408192471,1773202232246,-151.0,0.00015281,2]
[408192472,1773202232255,-151.0,0.00015281,2]
[408192473,1773202232264,-500.0,0.00015289,2]
[408192474,1773202232276,-500.0,0.00015289,2]
[408192475,1773202232285,-500.0,0.00015289,2]
[408192476,1773202232295,-151.0,0.0001529,2]
[408192477,1773202232305,-172.65844754,0.0001529,2]
[408192478,1773202232316,-306462.05965612,0.0001529,2]